[Event "World Senior chT-65 2019"]
[Site "Rhodes"]
[Date "2019.04.23"]
[Round "8.28"]
[White "Hewson, Brian W R"]
[Black "Schrickx, Frank"]
[Result "1-0"]
[ECO "E01"]
[WhiteElo "2004"]
[BlackElo "1823"]
[Annotator "NA RC"]
[PlyCount "129"]
[EventDate "2019.04.16"]
[EventType "team-tourn"]
[EventCountry "GRE"]
[SourceTitle "playchess.com"]
[Source "ChessBase"]
[SourceQuality "1"]
[WhiteTeam "England"]
[BlackTeam "Belgium"]
[WhiteTeamCountry "ENG"]
[BlackTeamCountry "BEL"]
[TimeControl "40/5400+30:1800+30"]

1. Nf3 {[%emt 0:00:00]} d5 {[%emt 0:00:21]} 2. d4 {[%emt 0:00:22]} Nf6 {[%emt 0:00:09]} 3. g3 {[%emt 0:03:44]} e6 {[%emt 0:01:37]} 4. Bg2 {[%emt 0:00:17]} c6 {[%emt 0:02:07]} 5. O-O {[%emt 0:00:09]} Nbd7 {[%emt 0:01:18]} 6. b3 {[%emt 0:03:25]} Bd6 {[%emt 0:01:49]} 7. Bb2 {[%emt 0:00:10]} Qc7 {[%emt 0:01:52]} 8. c4 {[%emt 0:00:39]} O-O {[%emt 0:09:30]} 9. Nc3 {[%emt 0:09:50] E01: Catalan: Early deviations} Re8 {[%emt 0:01:07]} 10. Rc1 {[%emt 0:00:59]} Bf8 {[%emt 0:01:57]} (10... a6 11. Nd2 Bf8 12. cxd5 exd5 13. Nxd5 Nxd5 14. Bxd5 Qa5 15. Bf3 Nf6 16. Nc4 Qd8 {1-0 (39) Horvath,J (2542)-Schachinger,M (2336) Austria 2008}) 11. Qc2 {[%emt 0:15:07]} Qb8 $146 {[%emt 0:03:14]} ({Predecessor:} 11... b6 12. Rfe1 Bb7 13. cxd5 exd5 14. Ng5 Qd6 15. e4 dxe4 16. Ncxe4 Nxe4 17. Nxe4 {½-½ (35) Ribeiro,V (1917)-Martins,R (2005) Brasilia 2012}) 12. e3 {[%emt 0:09:09]} h6 {[%emt 0:09:12]} 13. Rfd1 {[%emt 0:03:33]} Bb4 {[%emt 0:09:21]} 14. Ne2 {[%emt 0:08:23]} Ne4 {[%emt 0:16:12]} 15. a3 {[%emt 0:03:08]} Ba5 {[%emt 0:00:29]} 16. Ne1 {[%emt 0:04:30]} Bxe1 {[%emt 0:03:05]} 17. Rxe1 {[%emt 0:00:06]} f5 {[%emt 0:03:58]} 18. f3 {[%emt 0:05:41]} Nd6 {[%emt 0:04:39]} 19. Nf4 {[%emt 0:05:21]} Nf6 {[%emt 0:01:29]} 20. Nd3 {[%emt 0:00:23]} Nf7 {[%emt 0:01:31]} 21. Re2 {[%emt 0:07:11]} Nd6 {[%emt 0:08:16]} 22. Ne5 {[%emt 0:01:06]} Rd8 {[%emt 0:05:46]} 23. Ree1 {[%emt 0:01:22]} Nf7 {[%emt 0:01:04]} 24. Nxf7 {[%emt 0:00:39]} Kxf7 {[%emt 0:00:03]} 25. e4 {[%emt 0:00:29]} Qc7 {[%emt 0:01:34]} (25... b5 $16 26. cxd5 cxd5) 26. cxd5 {[%emt 0:02:02]} exd5 {[%emt 0:01:37]} 27. exf5 {[%emt 0:00:06]} Bd7 {[%emt 0:00:51]} 28. Re2 {[%emt 0:02:51]} Re8 {[%emt 0:00:25]} 29. Rce1 {[%emt 0:00:15]} Qb6 {[%emt 0:01:08]} 30. g4 {[%emt 0:00:22]} Rxe2 {[%emt 0:00:26]} 31. Rxe2 {[%emt 0:00:16]} Re8 {[%emt 0:00:15]} 32. Rxe8 {[%emt 0:01:40]} Kxe8 {[%emt 0:00:17]} 33. b4 {[%emt 0:02:06]} Kf7 {[%emt 0:01:09]} 34. Bf1 {[%emt 0:00:40]} a6 {[%emt 0:01:15]} 35. Bd3 {[%emt 0:00:44]} Qc7 {[%emt 0:00:30]} 36. Bc1 {[%emt 0:00:17]} Qd6 {[%emt 0:00:39]} 37. Qd2 {[%emt 0:01:11]} Qf8 {[%emt 0:00:57]} 38. Qf4 {[%emt 0:00:43]} Qe7 {[%emt 0:00:27]} 39. Qe5 {[%emt 0:00:18]} Ne8 {[%emt 0:00:44]} 40. Qxe7+ {[%emt 0:00:00]} Kxe7 {[%emt 0:00:00]} 41. Bf4 {[%emt 0:02:57]} Nd6 {[%emt 0:00:53]} 42. Be5 {[%emt 0:00:57]} Ne8 {[%emt 0:00:24]} 43. Kf2 {[%emt 0:01:15]} Kf7 {[%emt 0:00:25]} 44. Kg3 {[%emt 0:00:26]} Nf6 {[%emt 0:00:43]} 45. h4 {[%emt 0:01:38]} Nh7 {[%emt 0:00:25]} 46. Kf4 {[%emt 0:00:52]} Bc8 {[%emt 0:00:32]} 47. g5 {[%emt 0:03:01]} hxg5+ {[%emt 0:00:24]} 48. hxg5 {[%emt 0:00:06]} Nf8 {[%emt 0:00:14]} 49. Bd6 {[%emt 0:04:44]} Nd7 {[%emt 0:00:04]} 50. Kg3 {[%emt 0:01:21]} Nb6 {[%emt 0:00:15]} 51. g6+ {[%emt 0:02:06]} Kg8 {[%emt 0:00:22]} 52. Be5 {[%emt 0:01:13]} Na4 {[%emt 0:02:39]} 53. f6 {[%emt 0:01:33]} gxf6 {[%emt 0:00:08]} 54. Bxf6 {[%emt 0:00:05]} Nb2 {[%emt 0:01:24]} 55. Bc2 {[%emt 0:05:21]} b5 {[%emt 0:00:29]} 56. Kf4 {[%emt 0:01:28]} Nc4 {[%emt 0:00:30]} 57. Kg5 {[%emt 0:01:24]} Nxa3 {[%emt 0:00:27]} 58. Bd3 {[%emt 0:00:24]} Nc4 {[%emt 0:00:42]} 59. g7 $18 {[%emt 0:07:01]} Nd6 {[%emt 0:01:36]} 60. Be5 {[%emt 0:00:46]} Nf7+ {[%emt 0:00:32]} 61. Kf6 {[%emt 0:00:49]} Nh6 {[%emt 0:00:48]} 62. Bg6 {[%emt 0:00:37]} a5 {[%emt 0:01:56]} 63. bxa5 {[%emt 0:00:21]} b4 {[%emt 0:00:03]} 64. Bf4 {[%emt 0:00:29]} Ng4+ {[%emt 0:00:23]} 65. fxg4 {[%emt 0:00:15]} 1-0

[Event "World Senior chT-65 2019"]
[Site "Rhodes"]
[Date "2019.04.23"]
[Round "8.31"]
[White "Valentine, Brian J"]
[Black "Hvenekilde, Jorgen"]
[Result "1/2-1/2"]
[ECO "C41"]
[WhiteElo "1954"]
[BlackElo "2046"]
[Annotator "NA"]
[PlyCount "32"]
[EventDate "2019.04.16"]
[EventType "team-tourn"]
[EventCountry "GRE"]
[SourceTitle "playchess.com"]
[Source "ChessBase"]
[SourceQuality "1"]
[WhiteTeam "England"]
[BlackTeam "Denmark"]
[WhiteTeamCountry "ENG"]
[BlackTeamCountry "DEN"]
[TimeControl "40/5400+30:1800+30"]

1. e4 {[%emt 0:00:00]} e5 {[%emt 0:00:00]} 2. Nf3 {[%emt 0:00:00]} d6 {[%emt 0:00:00]} 3. d4 {[%emt 0:00:04]} exd4 {[%emt 0:00:12]} 4. Qxd4 {[%emt 0:00:19]} a6 {[%emt 0:00:26]} 5. Bf4 {[%emt 0:01:38]} Nc6 {[%emt 0:00:29]} 6. Qd2 {[%emt 0:00:08]} Be7 {[%emt 0:02:36]} 7. Nc3 {[%emt 0:01:03]} Nf6 {[%emt 0:00:09]} 8. O-O-O {[%emt 0:05:46]} O-O {[%emt 0:00:25]} 9. Bd3 {[%emt 0:02:21]} Nd7 {[%emt 0:05:54]} 10. Nd5 {[%emt 0:04:33]} Nce5 {[%emt 0:00:23]} 11. Nxe5 {[%emt 0:00:22]} dxe5 {[%emt 0:01:37]} 12. Nxe7+ {[%emt 0:01:00]} Qxe7 {[%emt 0:00:09]} 13. Bg3 {[%emt 0:04:45]} Nc5 {[%emt 0:06:10]} 14. Qc3 {[%emt 0:00:21]} Nxd3+ {[%emt 0:10:54]} 15. Rxd3 {[%emt 0:00:08]} f6 {[%emt 0:00:36]} 16. f3 {[%emt 0:03:06]} Be6 {[%emt 0:02:37]} 1/2-1/2

[Event "World Senior chT-65 2019"]
[Site "Rhodes"]
[Date "2019.04.23"]
[Round "8.32"]
[White "Grevlund, Per"]
[Black "Thynne, Trefor F"]
[Result "1/2-1/2"]
[ECO "B22"]
[WhiteElo "1998"]
[BlackElo "1907"]
[Annotator "NA RC"]
[PlyCount "26"]
[EventDate "2019.04.16"]
[EventType "team-tourn"]
[EventCountry "GRE"]
[SourceTitle "playchess.com"]
[Source "ChessBase"]
[SourceQuality "1"]
[WhiteTeam "Denmark"]
[BlackTeam "England"]
[WhiteTeamCountry "DEN"]
[BlackTeamCountry "ENG"]
[TimeControl "40/5400+30:1800+30"]

1. e4 {[%emt 0:00:00]} c5 {[%emt 0:00:00]} 2. c3 {[%emt 0:00:00]} d5 {[%emt 0:00:00]} 3. exd5 {[%emt 0:00:00]} Qxd5 {[%emt 0:00:00]} 4. d4 {[%emt 0:00:01]} Nf6 {[%emt 0:00:20]} 5. Nf3 {[%emt 0:00:24]} Bg4 {[%emt 0:00:53]} 6. Be2 {[%emt 0:00:59]} cxd4 {[%emt 0:03:33]} 7. cxd4 {[%emt 0:00:22]} e6 {[%emt 0:01:23]} 8. Nc3 {[%emt 0:01:23]} Qd8 {[%emt 0:01:56]} 9. O-O {[%emt 0:01:11]} Nc6 {[%emt 0:03:16]} 10. Be3 {[%emt 0:05:55]} Be7 {[%emt 0:00:25]} 11. Qb3 {[%emt 0:04:00]} Rb8 {[%emt 0:28:12]} 12. Rfd1 {[%emt 0:02:37]} Nd5 {[%emt 0:08:16]} 13. Nxd5 {[%emt 0:03:07]} Qxd5 {[%emt 0:08:36]} 1/2-1/2

[Event "World Senior chT-65 2019"]
[Site "Rhodes"]
[Date "2019.04.23"]
[Round "8.33"]
[White "Andersson, Kaj"]
[Black "Jones, Iolo C"]
[Result "0-1"]
[ECO "C42"]
[WhiteElo "2030"]
[BlackElo "2187"]
[Annotator "ChessBase"]
[PlyCount "204"]
[EventDate "2019.04.16"]
[EventType "team-tourn"]
[EventCountry "GRE"]
[SourceTitle "playchess.com"]
[Source "ChessBase"]
[SourceQuality "1"]
[WhiteTeam "Sweden"]
[BlackTeam "Wales"]
[WhiteTeamCountry "SWE"]
[BlackTeamCountry "WLS"]
[TimeControl "40/5400+30:1800+30"]

1. e4 {[%emt 0:00:00]} e5 {[%emt 0:00:00]} 2. Nf3 {[%emt 0:00:00]} Nf6 {[%emt 0:00:07]} 3. Nxe5 {[%emt 0:00:00]} d6 {[%emt 0:00:15]} 4. Nf3 {[%emt 0:00:03]} Nxe4 {[%emt 0:00:17]} 5. d4 {[%emt 0:00:10]} d5 {[%emt 0:00:28]} 6. Bd3 {[%emt 0:00:08]} Nc6 {[%emt 0:01:01]} 7. O-O {[%emt 0:00:27]} Be7 {[%emt 0:01:00]} 8. c4 {[%emt 0:02:00]} Nf6 {[%emt 0:04:07]} 9. Nc3 {[%emt 0:02:24]} Nb4 {[%emt 0:02:48]} 10. Bg5 {[%emt 0:02:23]} Nxd3 {[%emt 0:01:40]} 11. Qxd3 {[%emt 0:00:17]} dxc4 {[%emt 0:02:01]} 12. Qxc4 {[%emt 0:00:15]} c6 {[%emt 0:02:52]} 13. Bxf6 {[%emt 0:02:50]} Bxf6 {[%emt 0:01:37]} 14. Rfe1+ {[%emt 0:00:20]} Be6 {[%emt 0:02:30]} 15. d5 {[%emt 0:06:21]} cxd5 {[%emt 0:01:59]} 16. Nxd5 {[%emt 0:01:49]} O-O {[%emt 0:02:29]} 17. Nxf6+ {[%emt 0:04:24]} Qxf6 {[%emt 0:01:48]} 18. Qd4 {[%emt 0:00:43]} Qxd4 {[%emt 0:03:18]} 19. Nxd4 {[%emt 0:00:03]} Bd5 {[%emt 0:01:48]} 20. Nf5 {[%emt 0:03:54]} Be6 {[%emt 0:06:37]} 21. Nd4 {[%emt 0:00:15]} Bd7 {[%emt 0:02:23]} 22. f3 {[%emt 0:05:32]} Rfd8 {[%emt 0:10:30]} 23. Rac1 {[%emt 0:03:08]} Rac8 {[%emt 0:01:08]} 24. Kf2 {[%emt 0:01:24]} Kf8 {[%emt 0:01:55]} 25. a3 {[%emt 0:03:11]} a6 {[%emt 0:01:02]} 26. Rxc8 {[%emt 0:03:21]} Rxc8 {[%emt 0:00:55]} 27. g3 {[%emt 0:02:19]} Rc5 {[%emt 0:01:50]} 28. Ke3 {[%emt 0:02:29]} Ke7 {[%emt 0:02:53]} 29. Rd1 {[%emt 0:02:34]} Re5+ {[%emt 0:03:18]} 30. Kd3 {[%emt 0:01:25]} Bb5+ {[%emt 0:02:31]} 31. Nxb5 {[%emt 0:02:09]} Rxb5 {[%emt 0:00:18]} 32. Re1+ {[%emt 0:01:39]} Kd6 {[%emt 0:01:53]} 33. Kc3 {[%emt 0:00:36]} Rc5+ {[%emt 0:01:49]} 34. Kd3 {[%emt 0:00:44]} Rd5+ {[%emt 0:04:26]} 35. Kc3 {[%emt 0:00:57]} g5 {[%emt 0:00:57]} 36. Re8 {[%emt 0:00:46]} Rf5 {[%emt 0:01:20]} 37. Rd8+ {[%emt 0:03:17]} Kc5 {[%emt 0:02:42]} 38. Rd3 {[%emt 0:00:21]} h5 {[%emt 0:03:16]} 39. Re3 {[%emt 0:02:36]} h4 {[%emt 0:05:20]} 40. g4 {[%emt 0:00:00]} Rf4 {[%emt 0:00:00]} 41. b4+ {[%emt 0:06:29]} Kd5 {[%emt 0:01:47]} 42. Rd3+ {[%emt 0:01:10]} Kc6 {[%emt 0:04:26]} 43. h3 {[%emt 0:02:38]} f5 {[%emt 0:02:36]} 44. Kd2 {[%emt 0:02:30]} fxg4 {[%emt 0:00:35]} 45. fxg4 {[%emt 0:00:17]} b6 {[%emt 0:02:44]} 46. Ke2 {[%emt 0:01:01]} a5 {[%emt 0:00:58]} 47. bxa5 {[%emt 0:00:17]} bxa5 {[%emt 0:00:16]} 48. Rd8 {[%emt 0:03:11]} Re4+ {[%emt 0:03:57]} 49. Kf2 {[%emt 0:02:00]} Kc5 {[%emt 0:02:29]} 50. Rd3 {[%emt 0:07:56]} Re5 {[%emt 0:04:35]} 51. Rf3 {[%emt 0:04:40]} a4 {[%emt 0:03:11]} 52. Rc3+ {[%emt 0:05:52]} Kd4 {[%emt 0:01:01]} 53. Rc8 {[%emt 0:01:41]} Rc5 {[%emt 0:02:19]} 54. Ra8 {[%emt 0:13:36]} Rc2+ {[%emt 0:01:27]} 55. Kg1 {[%emt 0:02:45]} Ke3 {[%emt 0:00:13]} 56. Rxa4 {[%emt 0:00:26]} Kf3 {[%emt 0:00:49]} 57. Rb4 {[%emt 0:00:16]} Rc3 {[%emt 0:00:46]} 58. Kh2 {[%emt 0:01:48]} Rxa3 {[%emt 0:00:25]} 59. Rb5 {[%emt 0:02:59]} Ra2+ {[%emt 0:00:43]} 60. Kh1 {[%emt 0:01:05]} Re2 {[%emt 0:01:19]} 61. Kg1 {[%emt 0:02:47]} Rg2+ {[%emt 0:02:08]} 62. Kh1 {[%emt 0:00:20]} Re2 {[%emt 0:01:11]} 63. Kg1 {[%emt 0:00:19]} Kf4 {[%emt 0:01:04]} 64. Ra5 {[%emt 0:03:00]} Re5 {[%emt 0:00:52]} 65. Ra8 {[%emt 0:02:06]} Kf3 {[%emt 0:03:25]} 66. Ra7 {[%emt 0:04:16]} Re2 {[%emt 0:01:36]} 67. Ra8 {[%emt 0:01:19]} Rd2 {[%emt 0:03:58]} 68. Ra3+ {[%emt 0:00:59]} Ke2 {[%emt 0:01:35]} 69. Ra8 {[%emt 0:02:07]} Rd3 {[%emt 0:02:40]} 70. Kh2 {[%emt 0:00:42]} Rd2 {[%emt 0:03:07]} 71. Kg1 {[%emt 0:00:39]} Ke3 {[%emt 0:00:37]} 72. Ra7 {[%emt 0:00:23]} Re2 {[%emt 0:00:34]} 73. Ra8 {[%emt 0:01:35]} Kf3 {[%emt 0:00:38]} 74. Ra7 {[%emt 0:00:25]} Rg2+ {[%emt 0:01:36]} 75. Kh1 {[%emt 0:00:03]} Rf2 {[%emt 0:00:30]} 76. Ra3+ {[%emt 0:00:17]} Kf4 {[%emt 0:00:33]} 77. Ra5 {[%emt 0:02:11]} Kg3 {[%emt 0:01:09]} 78. Kg1 {[%emt 0:02:22]} Rf3 {[%emt 0:00:43]} 79. Rxg5 {[%emt 0:00:15]} Kxh3 {[%emt 0:00:27]} 80. Rg8 {[%emt 0:00:05]} Kg3 {[%emt 0:00:32]} 81. g5 {[%emt 0:00:38]} h3 {[%emt 0:00:40]} 82. Rh8 {[%emt 0:00:13]} Ra3 {[%emt 0:01:13]} 83. Kf1 {[%emt 0:00:23]} Ra1+ {[%emt 0:02:30]} 84. Ke2 {[%emt 0:00:02]} Ra6 {[%emt 0:01:03]} 85. Ke3 {[%emt 0:01:23]} Rg6 {[%emt 0:00:25]} 86. Rh5 {[%emt 0:00:28]} Kg4 {[%emt 0:00:20]} 87. Rh8 {[%emt 0:00:20]} Kg3 {[%emt 0:01:03]} 88. Rh5 {[%emt 0:00:05]} Re6+ {[%emt 0:00:19]} 89. Kd4 {[%emt 0:00:08]} Kg4 {[%emt 0:00:13]} 90. Rh8 {[%emt 0:00:19]} Rg6 {[%emt 0:00:37]} 91. Ke3 {[%emt 0:00:37]} Kg3 {[%emt 0:00:21]} 92. Rh5 {[%emt 0:00:06]} Re6+ {[%emt 0:00:29]} 93. Kd4 {[%emt 0:00:04]} Kg4 {[%emt 0:00:20]} 94. Rh8 {[%emt 0:00:15]} Rg6 {[%emt 0:00:16]} 95. Ke3 {[%emt 0:00:05]} Ra6 {[%emt 0:00:47]} 96. Ke4 {[%emt 0:00:38]} Re6+ {[%emt 0:01:01]} 97. Kd5 {[%emt 0:00:13]} Rg6 {[%emt 0:00:15]} 98. Ke4 {[%emt 0:00:36]} Rxg5 {[%emt 0:00:10]} 99. Ra8 {[%emt 0:00:39]} Rg7 {[%emt 0:00:23]} 100. Ke3 {[%emt 0:00:27]} h2 {[%emt 0:00:33]} 101. Ra1 {[%emt 0:01:17]} Kg3 {[%emt 0:00:10]} 102. Ke2 {[%emt 0:00:25]} Rh7 {[%emt 0:00:18]} 0-1

[Event "World Senior chT-65 2019"]
[Site "Rhodes"]
[Date "2019.04.23"]
[Round "8.34"]
[White "Thornton, John D"]
[Black "Carlsten, Peter"]
[Result "1/2-1/2"]
[ECO "C41"]
[WhiteElo "2061"]
[BlackElo "2002"]
[Annotator "NA RC"]
[PlyCount "30"]
[EventDate "2019.04.16"]
[EventType "team-tourn"]
[EventCountry "GRE"]
[SourceTitle "playchess.com"]
[Source "ChessBase"]
[SourceQuality "1"]
[WhiteTeam "Wales"]
[BlackTeam "Sweden"]
[WhiteTeamCountry "WLS"]
[BlackTeamCountry "SWE"]
[TimeControl "40/5400+30:1800+30"]

1. e4 {[%emt 0:00:00]} d6 {[%emt 0:00:00]} 2. d4 {[%emt 0:00:00]} Nf6 {[%emt 0:00:00]} 3. Nc3 {[%emt 0:00:04]} e5 {[%emt 0:00:00]} 4. Nf3 {[%emt 0:01:16]} Nbd7 {[%emt 0:00:05]} 5. Bc4 {[%emt 0:00:12]} Be7 {[%emt 0:00:12]} 6. O-O {[%emt 0:00:15]} O-O {[%emt 0:00:14]} 7. a4 {[%emt 0:00:20]} a5 {[%emt 0:05:39]} 8. Re1 {[%emt 0:04:32]} c6 {[%emt 0:01:06]} 9. Bb3 {[%emt 0:03:34]} exd4 {[%emt 0:00:44]} 10. Qxd4 {[%emt 0:09:05]} Nc5 {[%emt 0:00:43]} 11. Bc4 {[%emt 0:01:21]} Be6 {[%emt 0:04:54]} 12. Bxe6 {[%emt 0:08:50]} Nxe6 {[%emt 0:01:30]} 13. Qd2 {[%emt 0:02:46]} Re8 {[%emt 0:04:05]} 14. b3 {[%emt 0:01:35]} Qc7 {[%emt 0:00:31]} 15. Bb2 {[%emt 0:06:25]} Rad8 {[%emt 0:06:52]} 1/2-1/2

[Event "World Senior chT-65 2019"]
[Site "Rhodes"]
[Date "2019.04.23"]
[Round "8.35"]
[White "Gustavsson, Sture"]
[Black "Waterfield, John W"]
[Result "1/2-1/2"]
[ECO "A57"]
[WhiteElo "1976"]
[BlackElo "1928"]
[Annotator "NA RC"]
[PlyCount "82"]
[EventDate "2019.04.16"]
[EventType "team-tourn"]
[EventCountry "GRE"]
[SourceTitle "playchess.com"]
[Source "ChessBase"]
[SourceQuality "1"]
[WhiteTeam "Sweden"]
[BlackTeam "Wales"]
[WhiteTeamCountry "SWE"]
[BlackTeamCountry "WLS"]
[TimeControl "40/5400+30:1800+30"]

1. d4 {[%emt 0:00:00]} Nf6 {[%emt 0:00:00]} 2. Nf3 {[%emt 0:00:00]} c5 {[%emt 0:00:00]} 3. d5 {[%emt 0:00:14]} g6 {[%emt 0:00:00]} 4. e3 {[%emt 0:02:43]} Bg7 {[%emt 0:00:57]} 5. c4 {[%emt 0:02:34]} b5 {[%emt 0:08:06]} 6. cxb5 {[%emt 0:00:44]} a6 {[%emt 0:00:05]} 7. Nc3 {[%emt 0:02:12]} O-O {[%emt 0:02:48]} 8. Bc4 {[%emt 0:07:04]} axb5 {[%emt 0:01:12]} 9. Bxb5 {[%emt 0:00:23]} Qa5 {[%emt 0:02:35]} 10. O-O {[%emt 0:02:52]} Ne4 {[%emt 0:02:51]} 11. Nxe4 {[%emt 0:11:48]} Qxb5 {[%emt 0:00:14]} 12. Nc3 {[%emt 0:03:04]} Qb6 {[%emt 0:03:06]} 13. Qc2 {[%emt 0:04:54]} Ba6 {[%emt 0:02:25]} 14. Rd1 {[%emt 0:01:56]} d6 {[%emt 0:00:20]} 15. b3 {[%emt 0:09:13]} Nd7 {[%emt 0:00:23]} 16. Bb2 {[%emt 0:02:31]} Rab8 {[%emt 0:15:55]} 17. Na4 {[%emt 0:02:52]} Qb4 {[%emt 0:02:20]} 18. Bxg7 {[%emt 0:01:03]} Kxg7 {[%emt 0:00:05]} 19. Nb2 {[%emt 0:03:27]} Kg8 {[%emt 0:01:36]} 20. Nd2 {[%emt 0:11:17]} Qb7 {[%emt 0:03:47]} 21. Ndc4 {[%emt 0:01:33]} f5 {[%emt 0:00:34]} 22. f3 {[%emt 0:03:34]} Nf6 {[%emt 0:02:25]} 23. e4 {[%emt 0:01:46]} fxe4 {[%emt 0:01:56]} 24. fxe4 {[%emt 0:00:19]} Qd7 {[%emt 0:09:01]} 25. Re1 {[%emt 0:02:46]} Qg4 {[%emt 0:02:44]} 26. Rad1 $14 {[%emt 0:03:04]} Qh4 {[%emt 0:06:43]} 27. e5 {[%emt 0:06:26]} Ng4 {[%emt 0:02:42]} 28. h3 {[%emt 0:04:31]} Nf2 {[%emt 0:03:35]} 29. Re2 {[%emt 0:01:53]} Nxd1 {[%emt 0:05:52]} 30. Qxd1 {[%emt 0:01:52]} Rf4 {[%emt 0:05:08]} 31. exd6 {[%emt 0:00:36]} exd6 {[%emt 0:00:14]} 32. Qd3 {[%emt 0:02:42]} Rd4 {[%emt 0:03:09]} 33. Qe3 {[%emt 0:00:15]} Bb5 {[%emt 0:07:06]} 34. Qe6+ {[%emt 0:00:26]} Kg7 {[%emt 0:00:54]} 35. Qxd6 {[%emt 0:00:55]} Re8 {[%emt 0:02:05]} 36. Rxe8 {[%emt 0:00:34]} Bxe8 {[%emt 0:00:05]} 37. Qe5+ {[%emt 0:01:55]} Kf8 {[%emt 0:00:49]} 38. Qh8+ {[%emt 0:01:18]} Ke7 {[%emt 0:01:48]} 39. Qe5+ {[%emt 0:00:47]} Kf8 {[%emt 0:00:29]} 40. Qh8+ {[%emt 0:00:00]} Ke7 {[%emt 0:00:00]} 41. Qe5+ {[%emt 0:01:11]} Kf8 {[%emt 0:02:52]} 1/2-1/2

[Event "World Senior chT-65 2019"]
[Site "Rhodes"]
[Date "2019.04.23"]
[Round "8.37"]
[White "Woeber, Friedrich"]
[Black "Harestad, Thor Geir"]
[Result "1/2-1/2"]
[ECO "B21"]
[WhiteElo "2114"]
[BlackElo "2200"]
[Annotator "NA RC"]
[PlyCount "80"]
[EventDate "2019.04.16"]
[EventType "team-tourn"]
[EventCountry "GRE"]
[SourceTitle "playchess.com"]
[Source "ChessBase"]
[SourceQuality "1"]
[WhiteTeam "Austria"]
[BlackTeam "Norway"]
[WhiteTeamCountry "AUT"]
[BlackTeamCountry "NOR"]
[TimeControl "40/5400+30:1800+30"]

1. e4 {[%emt 0:00:00]} c5 {[%emt 0:00:00]} 2. Nf3 {[%emt 0:00:00]} Nc6 {[%emt 0:00:00]} 3. d4 {[%emt 0:00:11]} cxd4 {[%emt 0:00:00]} 4. c3 {[%emt 0:00:40]} d3 {[%emt 0:00:00]} 5. Bxd3 {[%emt 0:00:36]} d6 {[%emt 0:00:00]} 6. O-O {[%emt 0:00:47]} g6 {[%emt 0:00:01] B21: Sicilian: 2 f4 and Morra Gambit} (6... Nf6 7. h3 g6 8. Qe2 Bg7 9. Rd1 Nd7 10. Be3 O-O 11. Nbd2 b6 12. Nd4 Nce5 13. Ba6 Nc5 14. Bxc8 Qxc8 15. N4f3 Nxf3+ 16. Qxf3 {½-½ (37) Petrov,N (2490)-Bernadskiy,V (2549) Riga 2016}) 7. Be3 {[%emt 0:02:17]} Bg7 {[%emt 0:00:08]} 8. h3 {[%emt 0:03:54]} Nf6 {[%emt 0:00:20]} 9. Qd2 {[%emt 0:02:29]} O-O {[%emt 0:00:13]} 10. c4 {[%emt 0:01:25]} a6 {[%emt 0:02:50]} 11. Nc3 {[%emt 0:01:17]} Rb8 {[%emt 0:01:13]} 12. Rac1 {[%emt 0:06:04]} Bd7 $146 {[%emt 0:07:53]} ({Predecessor:} 12... Re8 13. Nd5 b6 14. Rfd1 Nd7 {1-0 (55) Halvorsen,H (1899)-Ponjican,E (2124) Vienna 2012}) 13. Rfd1 {[%emt 0:08:33]} Re8 {[%emt 0:02:51]} 14. c5 {[%emt 0:03:24]} Qa5 {[%emt 0:02:25]} 15. Bc4 {[%emt 0:03:16]} Rbd8 {[%emt 0:01:40]} 16. cxd6 {[%emt 0:06:26]} exd6 {[%emt 0:00:32]} 17. Qc2 {[%emt 0:01:44]} b5 {[%emt 0:09:53]} 18. Bb3 {[%emt 0:04:29]} Rc8 {[%emt 0:07:44]} 19. Rxd6 {[%emt 0:16:04]} b4 {[%emt 0:10:57]} 20. Nd5 {[%emt 0:03:21]} Ne5 {[%emt 0:06:22]} 21. Nxf6+ {[%emt 0:03:09]} Bxf6 {[%emt 0:00:10]} 22. Qd1 {[%emt 0:00:10]} Rxc1 {[%emt 0:01:16]} 23. Bxc1 {[%emt 0:05:37]} Be6 {[%emt 0:00:47]} 24. Bxe6 {[%emt 0:03:16]} fxe6 {[%emt 0:00:27]} 25. Nxe5 {[%emt 0:02:09]} Qxe5 {[%emt 0:03:03]} 26. Qd3 {[%emt 0:04:13]} Qa5 {[%emt 0:03:48]} 27. Qc4 {[%emt 0:01:45]} Qb5 {[%emt 0:11:13]} 28. Qxb5 {[%emt 0:00:29]} axb5 {[%emt 0:00:02]} 29. Rb6 {[%emt 0:04:53]} Rc8 {[%emt 0:00:48]} 30. Be3 {[%emt 0:00:30]} Bxb2 {[%emt 0:00:29]} 31. Rxb5 {[%emt 0:00:21]} Rc4 {[%emt 0:01:49]} 32. f3 {[%emt 0:00:50]} e5 $16 {[%emt 0:00:21]} 33. Kf1 {[%emt 0:02:40]} Ba3 {[%emt 0:00:12]} 34. Rd5 {[%emt 0:02:26]} Rc2 {[%emt 0:03:00]} 35. Rd2 {[%emt 0:00:00]} Rc1+ {[%emt 0:01:51]} 36. Ke2 {[%emt 0:00:18]} Rc4 {[%emt 0:00:47]} 37. Kd1 {[%emt 0:01:39]} Rc1+ {[%emt 0:00:21]} 38. Ke2 {[%emt 0:00:04]} Rc4 {[%emt 0:00:02]} 39. Kd3 {[%emt 0:02:01]} Rc3+ {[%emt 0:00:45]} 40. Ke2 {[%emt 0:00:00]} Rc4 {[%emt 0:00:00]} 1/2-1/2